Cogmind - Beta 14 @@@ ROGUE MODE // 2024.10.08 @ 13:43:20 Player: CrimsonOccultist Result: Self-destructed Performance ------------- Evolutions (2) 1000 Regions Visited (5) 1000 Robots Destroyed (97) 485 Value Destroyed (2515) 2515 Prototype IDs (8) 160 Alien Tech Used (0) 0 Bonus (11) 11 TOTAL SCORE: 5171 Bonus ------- High Alert Combat Kills 11 Cogmind --------- Core Integrity 458/550 Matter 227/300 Energy 100/100 System Corruption 0% Temperature Cool (0) Movement Treading (240) Ox1 Location -8/Materials Parts ------- > --- POWER (1) -------- (None) > --- PROPULSION (2) --- Light Treads > --- UTILITY (6) ------ Large Storage Unit Terrain Scan Processor Improved Targeting Computer Improved Targeting Computer > --- WEAPON (2) ------- Light Assault Rifle > --- INVENTORY (15) --- Heavy Ion Engine Heavy Ion Engine Light Nuclear Core Light Treads Light Treads Improved Targeting Computer Improved Targeting Computer Core Shielding Light Armor Plating Hardened Light Armor Plating Mini Grenade Launcher Peak State ------------ > --- POWER ------------ Heavy Ion Engine > --- PROPULSION ------- Light Treads Light Treads > --- UTILITY ---------- Large Storage Unit Improved Targeting Computer Improved Targeting Computer Hardened Light Armor Plating > --- WEAPON ----------- Improved Assault Rifle Improved Assault Rifle > --- INVENTORY -------- Heavy Ion Engine Light Treads Light Treads Light Treads Terrain Scanner Terrain Scan Processor Light Armor Plating Hardened Light Armor Plating Hardened Light Armor Plating Assault Rifle Light Assault Rifle Heavy Assault Rifle Heavy Assault Rifle Heavy Assault Rifle Mini Grenade Launcher [Rating: 20] Favorites ----------- Power Ion Engine Engine Ion Engine Power Core Nuclear Core Propulsion Light Treads Treads Light Treads Utility Improved Targeting Computer Device Terrain Scanner Storage Medium Storage Unit Processor Improved Targeting Computer Protection Weapon Shielding Weapon Assault Rifle Ballistic Gun Assault Rifle Build | -11 -10 -10 -9 -9 -8 ------- Run | Yrd Mat Min Mat Sto Mat Slots Evolved 4 | . . . 2 . 2 Power . | . . . . . . Propulsion . | . . . . . . Utility 4 | . . . 2 . 2 Weapon . | . . . . . . Parts Attached 60 | 7 3 1 32 7 10 Power 9 | 2 . . 5 . 2 Engine 7 | 2 . . 5 . . Core 2 | . . . . . 2 Reactor . | . . . . . . Propulsion 15 | 2 . . 7 5 1 Treads 15 | 2 . . 7 5 1 Leg . | . . . . . . Wheel . | . . . . . . Hover . | . . . . . . Flight . | . . . . . . Utility 17 | 1 3 . 9 1 3 Device 1 | . . . . . 1 Storage 3 | 1 1 . 1 . . Processor 7 | . 1 . 5 . 1 Hackware . | . . . . . . Protection 6 | . 1 . 3 1 1 Artifact . | . . . . . . Weapon 19 | 2 . 1 11 1 4 Energy Gun . | . . . . . . Energy Cannon . | . . . . . . Ballistic Gun 19 | 2 . 1 11 1 4 Ballistic Cannon . | . . . . . . Launcher . | . . . . . . Special Weapon . | . . . . . . Impact Weapon . | . . . . . . Slashing Weapon . | . . . . . . Piercing Weapon . | . . . . . . Special Melee Weapon . | . . . . . . Unidentified Prototypes 1 | . . . 1 . . Parts Lost 21 | . . . 9 3 9 Power 4 | . . . 3 . 1 Propulsion 2 | . . . . . 2 Utility 9 | . . . 5 2 2 Weapon 6 | . . . 1 1 4 Highest Loss Streak 7 | . . . 3 1 7 To Critical Strikes . | . . . . . . Average Slot Usage (%) 96 | . 99 100 95 92 93 Engine 11 | . 14 14 10 11 . Treads 23 | . 28 28 22 22 17 Storage 11 | . 14 14 11 11 9 Processor 17 | . 3 14 23 22 27 Protection 5 | . 10 . 4 4 5 Ballistic Gun 23 | . 28 28 21 21 17 Peak Build Rating 20 | 6 9 10 20 20 20 Average Rating 12 | 4 7 9 12 18 19 On Entrance 10 | . 6 9 10 20 17 Naked Turns . | . . . . . . Heaviest Build 39 | 14 20 20 39 39 38 Greatest Support 40 | 40 40 40 40 40 40 Greatest Overweight (x) 1 | . . . . . 1 Average Overweight (x) . | . . . . . . Largest Inventory Capacity 15 | 8 10 10 15 15 15 Average Capacity 12 | 6 9 10 13 15 15 Most Carried 15 | 2 10 10 15 15 14 Average Carried 10 | 1 7 9 10 14 12 Final Capacity 15 | 8 10 10 15 15 15 Final Carried 15 | 2 9 9 15 15 11 Class Distribution -------------------- 61% | Mutant 38% | Scavenger-Mutant Dominant Class ---------------- Mutant | -10/Materials Mutant | -10/Mines Scavenger-Mutant | -9/Materials Mutant | -9/Storage Scavenger-Mutant | -8/Materials Resources | -11 -10 -10 -9 -9 -8 ----------- Run | Yrd Mat Min Mat Sto Mat Matter Collected 2425 | 191 407 10 1054 568 195 Remotely . | . . . . . . Salvage Created 3799 | . 443 . 1847 1102 407 Parts 228 | . 46 . 106 58 18 Haulers Intercepted 6 | . . . 4 2 . Recyclers Shooed 1 | . . . 1 . . Parts Field Recycled . | . . . . . . Retrieved Matter . | . . . . . . Parts Self-Destructed . | . . . . . . Prevented . | . . . . . . Kills | -11 -10 -10 -9 -9 -8 ------- Run | Yrd Mat Min Mat Sto Mat Combat Hostiles Destroyed 69 | . 13 . 31 18 7 Guns 69 | . 13 . 31 18 7 Classes Destroyed 13 | . 5 . 6 1 1 Worker 2 | . . . 1 1 . Builder 2 | . 1 . 1 . . Hauler 6 | . . . 4 2 . Recycler 6 | . . . 3 2 1 Mechanic 2 | . . . 1 1 . Operator 2 | . 1 . 1 . . Watcher 8 | . 3 . 4 1 . Swarmer 17 | . 6 . 7 4 . Grunt 31 | . 7 . 14 5 5 Brawler 2 | . . . 2 . . Duelist 2 | . . . . 1 1 Sentry 16 | . . . 8 8 . Hunter 1 | . . . . . 1 Best Kill Streak 7 | . 4 . 7 7 3 Combat Bots Only 4 | . 3 . 4 4 2 Max Kills in Single Turn 2 | . 1 . 2 2 1 Gunslinging 1 | . . . 1 . . Exploded . | . . . . . . Melee . | . . . . . . Uniques/NPCs Destroyed . | . . . . . . Combat | -11 -10 -10 -9 -9 -8 -------- Run | Yrd Mat Min Mat Sto Mat Hostile Shots Fired 378 | . 55 . 139 105 79 Missed 93 | . 16 . 34 22 21 Damage Taken 3838 | . 413 . 1398 1113 914 Core 513 | . 65 . 278 78 92 Absorbed by Shields . | . . . . . . Redirected to Shielding 47 | . 47 . . . . Core Remaining (%) 61 | 100 . 74 . 11 . Volleys Fired 302 | . 50 . 125 79 48 Largest 2 | . 2 . 2 2 2 Hottest 46 | . 40 . 46 46 46 Shots Fired 594 | . 100 . 246 157 91 Gun 594 | . 100 . 246 157 91 Cannon . | . . . . . . Launcher . | . . . . . . Special . | . . . . . . Kinetic 594 | . 100 . 246 157 91 Thermal . | . . . . . . Explosive . | . . . . . . Electromagnetic . | . . . . . . Robot Hit Streak 27 | . 14 . 22 21 27 Robot Miss Streak 8 | . 8 . 4 2 3 Penetration Max . | . . . . . . Secondary Targets 5 | . 1 . 2 2 . Max Gunslinging Chain 1 | . 1 . 1 1 . Shots Hit Robots 429 | . 60 . 171 129 69 Core Hits 170 | . 29 . 74 39 28 Critical Kills . | . . . . . . Critical Parts Destroyed 1 | . . . 1 . . Critical Strikes 1 | . . . 1 . . Destroy 1 | . . . 1 . . Melee Attacks . | . . . . . . Impact . | . . . . . . Slashing . | . . . . . . Piercing . | . . . . . . Sneak Attacks . | . . . . . . Combat Hostiles . | . . . . . . Follow-up Attacks . | . . . . . . Damage Inflicted 5894 | . 778 . 2389 1912 815 Guns 5844 | . 777 . 2353 1906 808 Cannons . | . . . . . . Explosions . | . . . . . . Melee . | . . . . . . Ramming 50 | . 1 . 36 6 7 Kinetic 5844 | . 777 . 2353 1906 808 Thermal . | . . . . . . Explosive . | . . . . . . Electromagnetic . | . . . . . . Impact . | . . . . . . Slashing . | . . . . . . Piercing . | . . . . . . Highest Corruption 14 | . . . 14 14 . Average Corruption 13 | . . . 13 14 . Corruption Purged . | . . . . . . Corruption Blocked . | . . . . . . Effects 92 | . . . 44 48 . Message Errors 17 | . . . 7 10 . Matter Fused 13 | . . . 8 5 . Heat Flow Errors 10 | . . . 2 8 . Energy Discharges 14 | . . . 9 5 . Parts Rejected 2 | . . . 2 . . Parts Fused 2 | . . . 2 . . Data Loss (minor) 11 | . . . 6 5 . Data Loss (major) 5 | . . . 3 2 . Misfires 6 | . . . . 6 . Alerts 4 | . . . 2 2 . Misdirections 2 | . . . 2 . . Weapon Failures 6 | . . . 1 5 . Overload Shots . | . . . . . . Overflow Damage . | . . . . . . Projectiles . | . . . . . . Explosions . | . . . . . . Melee . | . . . . . . Knockbacks . | . . . . . . Impact . | . . . . . . Kinetic . | . . . . . . Secondary . | . . . . . . Self-Inflicted Damage . | . . . . . . Shots . | . . . . . . Rammed 13 | . 1 . 7 2 3 Targets Rammed 13 | . 1 . 7 2 3 Kicked . | . . . . . . Crushed . | . . . . . . Highest Temperature 313 | . 2 . 178 313 56 Average Temperature 66 | . 2 . 38 97 15 Received Heat Transfer 1524 | . 165 . 546 363 450 Siege Activations . | . . . . . . Robots Corrupted . | . . . . . . Combat Hostiles . | . . . . . . Parts Fried . | . . . . . . Impact Corruptions 1 | . . . 1 . . Robots Melted . | . . . . . . Combat Hostiles . | . . . . . . Parts Melted . | . . . . . . Heat Transferred . | . . . . . . Parts Sabotaged . | . . . . . . Parts Stolen . | . . . . . . Parts Stripped . | . . . . . . Power Chain Reactions . | . . . . . . Alert | -11 -10 -10 -9 -9 -8 ------- Run | Yrd Mat Min Mat Sto Mat Peak Influence 424 | . 225 23 387 424 336 Initial 143 | . . 23 . 42 143 Average 156 | . 107 13 176 271 213 Maximum Alert Level 2 | . 1 . 1 2 1 Low Security (%) 65 | 100 93 100 59 16 65 Level 1 33 | . 6 . 40 81 34 Level 2 . | . . . . 2 . Level 3 . | . . . . . . Level 4 . | . . . . . . Level 5 . | . . . . . . High Security . | . . . . . . Max Security . | . . . . . . Squads Dispatched 6 | . 2 . 3 . 1 Investigation 2 | . 1 . 1 . . Extermination . | . . . . . . Reinforcement 4 | . 1 . 2 . 1 Assault . | . . . . . . Garrison . | . . . . . . Intercept . | . . . . . . Searches Triggered . | . . . . . . Construction Impeded . | . . . . . . Haulers Reinforced . | . . . . . . Active Scanning Responses . | . . . . . . Cargo Convoy Interrupts . | . . . . . . Stealth | -11 -10 -10 -9 -9 -8 --------- Run | Yrd Mat Min Mat Sto Mat Distress Signals 10 | . . . 7 1 2 Communications Jammed . | . . . . . . Distress Signals . | . . . . . . Times Spotted 116 | . 23 . 51 23 19 Peak Tracking Total 6 | . 4 . 6 4 6 Tactical Retreats 9 | . 2 . 5 1 1 Traps | -11 -10 -10 -9 -9 -8 ------- Run | Yrd Mat Min Mat Sto Mat Traps Triggered 2 | . 1 . . 1 . Indirectly . | . . . . . . Trap Hack Attempts . | . . . . . . Triggered . | . . . . . . Disarmed . | . . . . . . Reprogrammed . | . . . . . . Reused . | . . . . . . Traps Extracted . | . . . . . . Installed . | . . . . . . Triggered . | . . . . . . Machines | -11 -10 -10 -9 -9 -8 ---------- Run | Yrd Mat Min Mat Sto Mat Machines Disabled . | . . . . . . Max in Single Turn . | . . . . . . Machines Repaired . | . . . . . . Machines Dismantled . | . . . . . . Machines Sabotaged . | . . . . . . Overloaded Fab Kills . | . . . . . . Hacking | -11 -10 -10 -9 -9 -8 --------- Run | Yrd Mat Min Mat Sto Mat Machines Accessed 22 | . 7 . 7 8 . Terminals 22 | . 7 . 7 8 . Fabricators . | . . . . . . Repair Stations . | . . . . . . Recycling Units . | . . . . . . Scanalyzers . | . . . . . . Garrison Access . | . . . . . . Total Hacks 59 | . 20 . 21 18 . Successful 26 | . 8 . 9 9 . Failed 31 | . 11 . 11 9 . Catastrophic 3 | . . . 2 1 . Database Lockouts 2 | . 1 . 1 . . Manual 41 | . 14 . 18 9 . Terminals 59 | . 20 . 21 18 . Fabricators . | . . . . . . Repair Stations . | . . . . . . Recycling Units . | . . . . . . Scanalyzers . | . . . . . . Garrison Access . | . . . . . . Terminal Hacks 14 | . 4 . 5 5 . Prototype ID Bank 4 | . 2 . 1 1 . Open Door 4 | . . . . 4 . Alert Level 3 | . 2 . 1 . . Unreport Threat 2 | . . . 2 . . Locate Traps 1 | . . . 1 . . Fabricator Hacks . | . . . . . . Repair Station Hacks . | . . . . . . Recycling Unit Hacks . | . . . . . . Scanalyzer . | . . . . . . Garrison Access Hacks . | . . . . . . Unauthorized Hacks 12 | . 4 . 4 4 . Terminals 12 | . 4 . 4 4 . Assimilate 1 | . . . . 1 . Botnet 11 | . 4 . 4 3 . Fabricators . | . . . . . . Repair Stations . | . . . . . . Recycling Units . | . . . . . . Scanalyzers . | . . . . . . Garrison Access . | . . . . . . Data Cores Recovered . | . . . . . . Used . | . . . . . . Hacking Detections 17 | . 7 . 6 4 . Full Trace Events 1 | . . . 1 . . Feedback Events . | . . . . . . Feedback Blocked . | . . . . . . Robot Schematics Acquired . | . . . . . . Robots Built . | . . . . . . Authchips . | . . . . . . Time . | . . . . . . Total Robot Build Rating . | . . . . . . Part Schematics Acquired . | . . . . . . Parts Built . | . . . . . . Authchips . | . . . . . . Time . | . . . . . . Total Part Build Rating . | . . . . . . Parts Repaired . | . . . . . . Time . | . . . . . . Parts Recycled . | . . . . . . Recycled Matter . | . . . . . . Retrieved Matter . | . . . . . . Retrieved Components . | . . . . . . Parts Scanalyzed . | . . . . . . Part Schematics Acquired . | . . . . . . Parts Damaged . | . . . . . . Bothacking | -11 -10 -10 -9 -9 -8 ------------ Run | Yrd Mat Min Mat Sto Mat Used RIF Installer . | . . . . . . Robots Hacked . | . . . . . . Non-combat . | . . . . . . Combat . | . . . . . . Robot Hacks Applied . | . . . . . . Relay Couplers Released . | . . . . . . Fabnet Peak Effective % . | . . . . . . Robots Rewired . | . . . . . . Allies Hacked . | . . . . . . Hacks Repelled . | . . . . . . Allies | -11 -10 -10 -9 -9 -8 -------- Run | Yrd Mat Min Mat Sto Mat Total Allies 2 | . . 1 . 1 . Largest Group 1 | . . 1 . 1 1 Highest-Rated Group 31 | . . 31 . 10 10 Highest-Rated Ally 31 | . . 31 . 10 10 Total Orders . | . . . . . . Ally Attacks . | . . . . . . Total Damage . | . . . . . . Kills . | . . . . . . Allies Corrupted . | . . . . . . Allies Melted . | . . . . . . Intel | -11 -10 -10 -9 -9 -8 ------- Run | Yrd Mat Min Mat Sto Mat Robot Analysis Total . | . . . . . . Derelict Logs Recovered . | . . . . . . Drone Launches . | . . . . . . Drone Recoveries . | . . . . . . Exploration | -11 -10 -10 -9 -9 -8 ------------- Run | Yrd Mat Min Mat Sto Mat Turns Passed 5735 | 94 1375 699 2128 1058 381 Spaces Moved 2675 | 53 712 422 936 428 124 Core 1 | 1 . . . . . Treads 2674 | 52 712 422 936 428 124 Legs . | . . . . . . Wheels . | . . . . . . Hover . | . . . . . . Flight . | . . . . . . Fastest Speed 50 | 50 160 160 160 160 160 Average Speed 159 | 157 160 160 160 160 160 Slowest Speed 240 | 160 160 160 160 160 240 Overloaded Moves . | . . . . . . Propulsion Burnouts . | . . . . . . Robots Hopped . | . . . . . . Cave-ins Triggered . | . . . . . . Exploration Rate (%) 55 | 3 97 82 75 62 16 Regions Visited 5 Branch Regions 2 Pre-discovered Areas . | . . . . . . Known Exits Taken 1 | . . . 1 . . Unknown Exits Taken 4 | 1 1 1 . 1 . Scrap Searched . | . . . . . . Spaces Dug . | . . . . . . Terrain Destroyed . | . . . . . . Melee . | . . . . . . Projectile . | . . . . . . AOE . | . . . . . . Terrain Rammed . | . . . . . . Walls Destroyed . | . . . . . . Machines Disabled . | . . . . . . Actions | -11 -10 -10 -9 -9 -8 --------- Run | Yrd Mat Min Mat Sto Mat Total 3532 | 60 847 446 1315 649 215 Wait 434 | . 74 23 186 123 28 Move 2670 | 52 711 421 935 427 124 Hop . | . . . . . . Pick Up 25 | 1 7 . 12 4 1 Fast Attach 16 | 6 1 . 7 1 1 Attach 19 | . 1 . 10 1 7 Detach 4 | . . . 3 . 1 Swap 25 | 1 1 1 15 5 2 Drop 23 | . 1 1 14 7 . Fire 302 | . 50 . 125 79 48 Melee . | . . . . . . Ram 1 | . . . 1 . . Kick . | . . . . . . Crush 13 | . 1 . 7 2 3 Escape Stasis . | . . . . . . Rewire . | . . . . . . Trap . | . . . . . . Miscellaneous . | . . . . . . Route ------- -11/Scrapyard -10/Materials (discovered 4 exits: *Mat x3 / [*Min]) -10/Mines (discovered 2 exits: *Mat x2) -9/Materials (discovered 5 exits: [*Mat] / *Min x2 / *Sto x2) -9/Storage -8/Materials History --------- Turn | Location | Event 11 | -11/Scrapyard | Discovered new exit (range 15) 95 | -11/Scrapyard | Entered Materials 201 | -10/Materials | Discovered new exit (range 9) 301 | -10/Materials | Build established: Mutant 467 | -10/Materials | Discovered new exit (range 16) 858 | -10/Materials | Discovered new exit (range 16) 1162 | -10/Materials | Discovered new exit (range 16) 1395 | -10/Materials | Central database locked down 1470 | -10/Materials | Entered Mines 1496 | -10/Mines | Joined a pair of Derelicts in attacking an 0b10 outpost 1604 | -10/Mines | Received a Mining Laser from a helpful Derelict 1738 | -10/Mines | Discovered new exit (range 10) 2105 | -10/Mines | Discovered new exit (range 10) 2169 | -10/Mines | Entered Materials 2169 | -9/Materials | Evolved 2 slots: Utility x2 2181 | -9/Materials | Discovered new exit (range 16) 2229 | -9/Materials | Identified exit to Storage 2302 | -9/Materials | Discovered exit to Storage (range 15) 2517 | -9/Materials | Build established: Scavenger-Mutant 2852 | -9/Materials | Discovered new exit (range 4) 3177 | -9/Materials | Identified exit to Mines 3310 | -9/Materials | Core integrity fell below 50% 3312 | -9/Materials | System corruption reached 10% 3342 | -9/Materials | Lost 3 parts (3u) 3360 | -9/Materials | Discovered new exit (range 9) 3670 | -9/Materials | Discovered exit to Mines (range 12) 3684 | -9/Materials | Central database locked down 4297 | -9/Materials | Entered Storage 4558 | -9/Storage | Build established: Mutant 4674 | -9/Storage | Core integrity fell below 20% 5331 | -9/Storage | Discovered new exit (range 15) 5355 | -9/Storage | Entered Materials 5355 | -8/Materials | Accompanied by 1 ally 5355 | -8/Materials | Evolved 2 slots: Utility x2 5646 | -8/Materials | Build established: Scavenger-Mutant 5736 | -8/Materials | Self-destructed Last Messages --------------- 05671_ W-25 Informer sends out distress signal. 05682_ Critical hit (Burn: +37). 05691_ Lgt. Treads destroyed. 05696_ G-47 Trooper destroyed. 05705_ R-06 Scavenger collects Lgt. Nuclear Core. 05707_ Critical hit (Burn: +37). 05708_ R-06 Scavenger collects Aluminum Leg. 05709_ Lgt. Treads destroyed. 05710_ U-05 Engineer builds a Door. 05712_ R-06 Scavenger collects Imp. Aluminum Leg. 05713_ Hvy. Assault Rifle destroyed. 05715_ Terrain Scanner destroyed. 05715_ G-47 Trooper destroyed. 05716_ R-06 Scavenger collects Melee Analysis Suite. 05726_ Assault Rifle destroyed. 05728_ Slammed into G-47 Trooper. 05730_ Hrd. Light Armor Plating destroyed. 05731_ Slammed into G-47 Trooper. 05734_ Nuclear Core destroyed. 05735_ R-06 Scavenger inserts Lgt. Nuclear Core into recycling unit. Map ----- +----------------------------------------------------+ | #####?##?#######??#?#??###???????????????????????? | | #????#?##??#?#??###?##?###?#????????????????????? | | #####?#?###???#?#????#?##?#??#??????????????????? | | #####?###???##?##########?##????????????????????? | | #####???################?????#???????????????????? | | #???##?# + ###?###??#?????????????????? | | "##?##??# ""# #?#???##?#?????????????????? | | #####??# T"# #??##???#?#????????????????? | | "###?#?## ""# #####???##?????????????????? | | "####??## # ###???#????????????????????? | | ##??#### # % ####??###?#????????????????? | | ############+######+#####?#???#??????????????????? | | ######????????????????????? | | #####?#??#????????????????? | | #"""T"""###???????????????? | | +###########/####### ? ?????????????? | | #?### #### ????????????? | | ##### ####u !!! #???????????? | | ##### #""" ^ !!! #???????????? | | """ ##??# #"R ^ !! #???????????? | | """ #####* #""" ^ ^ #????????????? | | """ ###?# #### #?#??????????? | | #########+##### """" !!! ##???????????? | | ## =# """" !!! ""#??????????? | | ####### = * # g"""" !!! rY"#??????????? | | ?#??#?# /%+% !mg@ ""##?????????? | | ?????## #*[ g #????????????? | | ?????## =#! #?#??????????? | | #???#?############## w % #? ?????????? | | ?????#???##?#####?## ########## #????????????? | | ??????#?##?? ##?### ## ?? ?? + ??????????? | | ???????#?#?? ## ? ??? ?# ?????????? | | ???????#????? ? ##??? ?#? ????#?????????? | | ?????????? ?##### ####?#???#? #????????????? | | ?????????#?????##### ###?#####??? ?????????????? | | ????????#?# ???#?#?# #?# ? ? ??????????????????? | | ????????????? ?#??# #?# ? #????????????????? | | ????????????? ???# #?????? ?????????????????? | | ?????????????? ? #?# ### ?""? ?????????????????? | | ???????????????????# #?#???"???????????????????? | | ???????????????????# ??????????????????????????? | | ???????????????????? ??????????????????????????? | | ?????????????????????????????????????????????????? | | ?????????????????????????????????????????????????? | | ?????????????????????????????????????????????????? | | ?????????????????????????????????????????????????? | | ?????????????????????????????????????????????????? | | ?????????????????????????????????????????????????? | | ?????????????????????????????????????????????????? | | ?????????????????????????????????????????????????? | +----------------------------------------------------+ Best States ------------- Heat Dissipation 31 Energy Generation 14 Energy Capacity 280 Matter Stores 300 Matter Capacity 300 Sight Range 16 Terrain Scan Range 14 Terrain Scan Density 85 Armor Coverage 150 Weapon Shielding 33 Evasion (%) 40 Targeting Accuracy 12 Recoil Reduction 2 Item Schematics ----------------- None Robot Schematics ------------------ None Fabricated ------------ Nothing Alien Tech Used ----------------- None Achievements -------------- None Challenges ------------ None Game ------ Seed LauncherElectrostormUnit Manual? 0 Play Time 00:42:04 Cumulative 29.2 hours Start 2024.09.23 @ 12:47:15 End 2024.10.08 @ 13:43:20 Sessions 3 Manual Loads 0 Difficulty Rogue Special Mode None Game No. 25 Rogue 25 Adventurer 0 Explorer 0 Win Type - Total 0 Types 0/0/0/0/0/0/0/0/0 Lore% 14 Gallery% 29 Achievement% 28 Wizard Run 0 Options --------- Layout 0 ASCII 0 Keyboard 1 Movement Numpad Keybinds 0 Fullscreen 1 Font 18/Smallcaps Map View 76x50 Zoom Use 0% Tactical HUD 1 Map Filters NONE Filters NONE Steam 1 RUN: 1496f161-91d8-457e-9a9d-bcd12300b282